[Event "Minior-SM 2025"]
[Site "Uppsala, Sweden"]
[Date "2025.07.06"]
[Round "9.4"]
[White "Cui, Ian"]
[Black "Bardhan, Sayak Raj"]
[Result "0-1"]
[TimeControl "90 min for 40 move + 30 min with an increment of 30 sec starting move 1"]
[WhiteFideId "1793926"]
[BlackFideId "1771850"]
[WhiteElo "1706"]
[BlackElo "1658"]

1. d4 {[%clk 01:30:57]} {[%emt 00:00:03]} d5 {[%clk 01:30:54]} {[%emt
00:00:05]} 2. Bf4 {[%clk 01:31:12]} {[%emt 00:00:16]} c5 {[%clk 01:29:54]}
{[%emt 00:01:30]} 3. e3 {[%clk 01:31:23]} {[%emt 00:00:19]} cxd4 {[%clk
01:30:02]} {[%emt 00:00:22]} 4. exd4 {[%clk 01:31:35]} {[%emt 00:00:18]} Nc6
{[%clk 01:29:47]} {[%emt 00:00:46]} 5. c4 {[%clk 01:31:28]} {[%emt 00:00:36]}
Nf6 {[%clk 01:29:52]} {[%emt 00:00:25]} 6. Nf3 {[%clk 01:30:23]} {[%emt
00:01:34]} Bg4 {[%clk 01:26:54]} {[%emt 00:03:27]} 7. Be2 {[%clk 01:29:01]}
{[%emt 00:01:54]} e6 {[%clk 01:19:10]} {[%emt 00:08:15]} 8. Nc3 {[%clk
01:28:10]} {[%emt 00:01:20]} Be7 {[%clk 01:14:42]} {[%emt 00:04:58]} 9. c5
{[%clk 01:21:20]} {[%emt 00:07:20]} O-O {[%clk 01:12:57]} {[%emt 00:02:13]} 10.
O-O {[%clk 01:17:25]} {[%emt 00:04:27]} Ne8 {[%clk 01:07:41]} {[%emt 00:05:46]}
11. h3 {[%clk 01:13:11]} {[%emt 00:04:44]} Bf5 {[%clk 01:05:28]} {[%emt
00:02:42]} 12. Qa4 {[%clk 01:06:10]} {[%emt 00:07:32]} f6 {[%clk 00:59:54]}
{[%emt 00:06:04]} 13. Rfe1 {[%clk 01:02:20]} {[%emt 00:04:19]} e5 {[%clk
00:52:16]} {[%emt 00:08:09]} 14. Be3 {[%clk 00:58:45]} {[%emt 00:04:06]} e4
{[%clk 00:51:09]} {[%emt 00:01:36]} 15. Nd2 {[%clk 00:58:56]} {[%emt 00:00:18]}
Nc7 {[%clk 00:45:00]} {[%emt 00:06:39]} 16. Rad1 {[%clk 00:54:10]} {[%emt
00:05:17]} Be6 {[%clk 00:40:56]} {[%emt 00:04:33]} 17. Nf1 {[%clk 00:52:30]}
{[%emt 00:02:12]} f5 {[%clk 00:40:57]} {[%emt 00:00:28]} 18. g3 {[%clk
00:50:39]} {[%emt 00:02:20]} Bg5 {[%clk 00:33:30]} {[%emt 00:07:58]} 19. f4
{[%clk 00:44:49]} {[%emt 00:06:21]} exf3 {[%clk 00:32:41]} {[%emt 00:01:19]} 20.
Bxf3 {[%clk 00:44:51]} {[%emt 00:00:27]} f4 {[%clk 00:24:30]} {[%emt 00:08:41]}
21. gxf4 {[%clk 00:41:46]} {[%emt 00:03:35]} Bxf4 {[%clk 00:24:48]} {[%emt
00:00:13]} 22. Bg2 {[%clk 00:40:35]} {[%emt 00:01:41]} Qh4 {[%clk 00:20:38]}
{[%emt 00:04:39]} 23. Bf2 {[%clk 00:38:18]} {[%emt 00:02:47]} Bh2+ {[%clk
00:18:11]} {[%emt 00:02:57]} 24. Nxh2 {[%clk 00:37:03]} {[%emt 00:01:46]} Qxf2+
{[%clk 00:16:05]} {[%emt 00:02:35]} 25. Kh1 {[%clk 00:37:13]} {[%emt 00:00:20]}
Qh4 {[%clk 00:13:10]} {[%emt 00:03:25]} 26. Re3 {[%clk 00:34:23]} {[%emt
00:03:17]} Rf2 {[%clk 00:12:19]} {[%emt 00:01:23]} 27. Nf3 {[%clk 00:33:27]}
{[%emt 00:01:28]} Qf4 {[%clk 00:11:58]} {[%emt 00:00:49]} 28. Re2 {[%clk
00:32:31]} {[%emt 00:01:28]} Rxf3 {[%clk 00:11:54]} {[%emt 00:00:34]} 29. Bxf3
{[%clk 00:32:31]} {[%emt 00:00:29]} Qxf3+ {[%clk 00:12:23]} {[%emt 00:00:02]}
30. Kg1 {[%clk 00:32:39]} {[%emt 00:00:19]} Qg3+ {[%clk 00:11:08]} {[%emt
00:01:45]} 31. Rg2 {[%clk 00:32:49]} {[%emt 00:00:22]} Qe3+ {[%clk 00:11:29]}
{[%emt 00:00:08]} 32. Kh1 {[%clk 00:31:44]} {[%emt 00:01:35]} Bxh3 {[%clk
00:10:19]} {[%emt 00:01:41]} 33. Rh2 {[%clk 00:30:35]} {[%emt 00:01:40]} Qf3+
{[%clk 00:09:51]} {[%emt 00:00:58]} 0-1